Cogmind - Beta 17.1 --- EXPLORER MODE // 2026.09.23 @ 19:39:25 // Winter2019/RPGLIKE Player: Goose Result: Destroyed by 5B-FUL(j) with Overtuned Pulse Rifle Performance ------------- Evolutions (0) 0 Regions Visited (3) 600 Robots Destroyed (20) 100 Value Destroyed (715) 715 Prototype IDs (2) 40 Alien Tech Used (0) 0 Bonus (6530) 6530 TOTAL SCORE: 7985 Bonus ------- Follower Combat Kills 1180 Prayed to X0-1V1 5000 Major X0-1V1 Interference 50 Registered with UFD 300 Cogmind --------- Core Integrity 0/600 Matter 260/300 Energy 372/400 System Corruption 0% Temperature Warning (357) Movement Treading (160) Location -7/Scraptown Parts ------- > --- POWER (2) -------- Ion Engine Ion Engine > --- PROPULSION (3) --- Light Treads Light Treads Spiked Treads > --- UTILITY (5) ------ Heat Sink Seismic Detector Targeting Computer Utility Shielding > --- WEAPON (5) ------- Medium Laser Beamcaster Autogun > --- INVENTORY (0) ---- (None) Peak State ------------ > --- POWER ------------ Ion Engine Ion Engine > --- PROPULSION ------- Light Treads Light Treads Spiked Treads > --- UTILITY ---------- Heat Sink Seismic Detector Targeting Computer Utility Shielding Weapon Shielding > --- WEAPON ----------- Medium Laser Medium Laser Beamcaster Autogun Mining Laser > --- INVENTORY -------- (None) [Rating: 21] Favorites ----------- Power Ion Engine Engine Ion Engine Propulsion Light Treads Treads Light Treads Utility Targeting Computer Device Seismic Detector Processor Targeting Computer Protection Weapon Shielding Weapon Medium Laser Energy Gun Medium Laser Ballistic Gun Autogun Special Weapon Mining Laser Build | -11 -10 -10 -7 ------- Run | Yrd Mat Sub Scr Slots Evolved 11 | 7 2 2 . Power 1 | 1 . . . Propulsion 2 | 1 . 1 . Utility 4 | 3 1 . . Weapon 4 | 2 1 1 . Parts Attached 22 | 11 8 2 1 Power 5 | 2 3 . . Engine 5 | 2 3 . . Core . | . . . . Reactor . | . . . . Propulsion 3 | 2 . 1 . Treads 3 | 2 . 1 . Leg . | . . . . Wheel . | . . . . Hover . | . . . . Flight . | . . . . Utility 5 | 4 1 . . Device 2 | 1 1 . . Storage . | . . . . Processor 1 | 1 . . . Hackware . | . . . . Protection 2 | 2 . . . Artifact . | . . . . Weapon 9 | 3 4 1 1 Energy Gun 3 | 2 . . 1 Energy Cannon . | . . . . Ballistic Gun 4 | 1 2 1 . Ballistic Cannon . | . . . . Launcher . | . . . . Special Weapon 2 | . 2 . . Impact Weapon . | . . . . Slashing Weapon . | . . . . Piercing Weapon . | . . . . Special Melee Weapon . | . . . . Unidentified Prototypes . | . . . . Parts Lost 2 | . . . 2 Power . | . . . . Propulsion . | . . . . Utility 1 | . . . 1 Weapon 1 | . . . 1 Highest Loss Streak 2 | . . . 2 To Critical Strikes . | . . . . Average Backups . | . . . . Power . | . . . . Propulsion . | . . . . Utility . | . . . . Weapon . | . . . . Tool/Special . | . . . . Unused Backups . | . . . . Power . | . . . . Propulsion . | . . . . Utility . | . . . . Weapon . | . . . . Tool/Special . | . . . . Average Slot Usage (%) 98 | . 99 99 96 Engine 14 | . 15 14 13 Treads 17 | . 15 16 20 Device 12 | . 10 14 13 Processor 7 | . 7 6 6 Protection 14 | . 15 14 12 Energy Gun 14 | . 15 14 13 Ballistic Gun 8 | . 7 9 8 Special Weapon 6 | . 6 6 6 Peak Build Rating 21 | 11 14 18 21 Average Rating 14 | 8 12 15 17 On Entrance 10 | . 11 14 18 Avg Prop Armor Cover (%) . | . . . . Naked Turns . | . . . . Heaviest Build 27 | 17 22 26 27 Greatest Support 60 | 40 40 60 60 Greatest Overweight (x) . | . . . . Average Overweight (x) . | . . . . Largest Inventory Capacity . | . . . . Average Capacity . | . . . . Most Carried . | . . . . Average Carried . | . . . . Final Capacity . | . . . . Final Carried . | . . . . Class Distribution -------------------- 100% | Hacker-Gunner Dominant Class ---------------- Hacker-Gunner | -10/Materials Hacker-Gunner | -10/Subcaves Hacker-Gunner | -7/Scraptown Resources | -11 -10 -10 -7 ----------- Run | Yrd Mat Sub Scr Matter Collected 638 | 272 304 62 . Remotely . | . . . . Salvage Created 697 | . 411 88 198 Parts 33 | . 21 4 8 Haulers Intercepted . | . . . . Recyclers Shooed . | . . . . Parts Field Recycled . | . . . . Retrieved Matter . | . . . . Parts Self-Destructed . | . . . . Prevented . | . . . . Parts Restored . | . . . . Kills | -11 -10 -10 -7 ------- Run | Yrd Mat Sub Scr Combat Hostiles Destroyed 19 | . 13 3 3 Guns 16 | . 11 2 3 Cannons 2 | . 1 1 . Classes Destroyed 6 | . 3 1 2 Watcher 1 | . 1 . . Swarmer 2 | . 2 . . Grunt 11 | . 11 . . Subdweller 3 | . . 3 . Explorer 2 | . . . 2 Scrapper 1 | . . . 1 Best Kill Streak 3 | . 3 2 2 Combat Bots Only 3 | . 3 2 2 Max Kills in Single Turn 1 | . 1 1 1 Gunslinging . | . . . . Exploded . | . . . . Melee . | . . . . Uniques/NPCs Destroyed . | . . . . Combat | -11 -10 -10 -7 -------- Run | Yrd Mat Sub Scr Hostile Shots Fired 83 | . 37 16 30 Missed 25 | . 11 4 10 Hits 58 | . 26 12 20 Projectile 58 | . 26 12 20 Critical Strikes 3 | . 1 . 2 Actively Blocked 1 | . 1 . . Damage Taken 1097 | . 216 282 599 Core 828 | . 153 211 464 Absorbed by Shields . | . . . . Redirected to Core 699 | . 123 153 423 Redirected to Shielding 64 | . 20 24 20 Ignored by Resistances 589 | . 137 109 343 Core Remaining (%) 100 | 100 . . . Volleys Fired 40 | . 24 6 10 Largest 5 | . 4 4 5 Hottest 298 | . 223 223 298 Shots Fired 128 | . 74 20 34 Gun 116 | . 65 18 33 Cannon . | . . . . Launcher . | . . . . Special 12 | . 9 2 1 Kinetic 37 | . 21 6 10 Thermal 91 | . 53 14 24 Explosive . | . . . . Electromagnetic . | . . . . Robot Hit Streak 43 | . 19 14 43 Robot Miss Streak 1 | . 1 1 . Penetration Max . | . . . . Secondary Targets 2 | . . . 2 Max Gunslinging Chain 1 | . . . 1 Shots Hit Robots 95 | . 48 18 29 Core Hits 41 | . 22 6 13 Critical Kills . | . . . . Critical Parts Destroyed . | . . . . Critical Strikes 7 | . 4 2 1 Burn 7 | . 4 2 1 Melee Attacks . | . . . . Impact . | . . . . Slashing . | . . . . Piercing . | . . . . Sneak Attacks . | . . . . Combat Hostiles . | . . . . Follow-up Attacks . | . . . . Damage Inflicted 1541 | . 837 262 442 Guns 1259 | . 603 214 442 Cannons . | . . . . Explosions 114 | . 114 . . Melee . | . . . . Ramming . | . . . . Kinetic 434 | . 229 77 128 Thermal 1107 | . 608 185 314 Explosive . | . . . . Electromagnetic . | . . . . Impact . | . . . . Slashing . | . . . . Piercing . | . . . . Highest Corruption 4 | . 2 4 . Average Corruption 1 | . 1 2 . Corruption Purged . | . . . . Corruption Blocked . | . . . . Effects 19 | . 13 6 . Message Errors 7 | . 3 4 . Matter Fused 5 | . 4 1 . Heat Flow Errors 4 | . 4 . . Data Loss (minor) 1 | . 1 . . Alerts 1 | . . 1 . Weapon Failures 1 | . 1 . . Overload Shots . | . . . . Overflow Damage 74 | . 74 . . Projectiles . | . . . . Explosions 74 | . 74 . . Melee . | . . . . Knockbacks . | . . . . Impact . | . . . . Kinetic . | . . . . Secondary . | . . . . Self-Inflicted Damage . | . . . . Shots . | . . . . Rammed . | . . . . Targets Rammed . | . . . . Kicked . | . . . . Crushed . | . . . . Highest Temperature 471 | . 471 3 345 Average Temperature 145 | . 155 3 110 Received Heat Transfer 324 | . 162 63 99 Effects 11 | . 11 . . Shutdowns 4 | . 4 . . Interference 3 | . 3 . . Matter Decay 1 | . 1 . . Short Circuit 2 | . 2 . . Damage (minor) 1 | . 1 . . Siege Activations . | . . . . Martial Activations . | . . . . Shielding Activations . | . . . . Robots Disrupted . | . . . . Combat Hostiles . | . . . . Robots Corrupted . | . . . . Combat Hostiles . | . . . . Parts Fried 1 | . . . 1 Impact Corruptions . | . . . . Robots Melted 1 | . 1 . . Combat Hostiles 1 | . 1 . . Parts Melted 1 | . 1 . . Heat Transferred 3163 | . 1706 655 802 Parts Sabotaged . | . . . . Parts Stolen . | . . . . Parts Stripped . | . . . . Power Chain Reactions . | . . . . Alert | -11 -10 -10 -7 ------- Run | Yrd Mat Sub Scr Maximum Alert Level . | . . . . Low Security (%) 100 | 100 100 . . Level 1 . | . . . . Level 2 . | . . . . Level 3 . | . . . . Level 4 . | . . . . Level 5 . | . . . . High Security . | . . . . Max Security . | . . . . Peak Influence 85 | . 85 . . Initial . | . . . . Average 9 | . 10 . . Influence Increases 486 | . 481 . 5 Destroy 0b10 Robot/C 260 | . 260 . . Destroy 0b10 Robot/NC 10 | . 5 . 5 Destroy Leader 52 | . 52 . . Successful Hack 23 | . 23 . . Select Force Hacks 60 | . 60 . . Disable Machine 12 | . 12 . . Destroy Structure 24 | . 24 . . Partial Spotted 15 | . 15 . . Lose Combat Pursuer 30 | . 30 . . Influence Decreases 486 | . 481 . 5 Time Decay 486 | . 481 . 5 Squads Dispatched 2 | . 2 . . Investigation 2 | . 2 . . Extermination . | . . . . Reinforcement . | . . . . Assault . | . . . . Garrison . | . . . . Intercept . | . . . . Searches Triggered . | . . . . Construction Impeded . | . . . . Haulers Reinforced . | . . . . Active Scanning Responses . | . . . . Cargo Convoy Interrupts . | . . . . Stealth | -11 -10 -10 -7 --------- Run | Yrd Mat Sub Scr Distress Signals 2 | . 2 . . Communications Jammed . | . . . . Distress Signals . | . . . . Times Spotted 64 | . 25 3 36 Peak Tracking Total 10 | . 4 2 10 Tactical Retreats 3 | . 2 . 1 Traps | -11 -10 -10 -7 ------- Run | Yrd Mat Sub Scr Traps Triggered 4 | . 2 2 . Indirectly . | . . . . Trap Hack Attempts . | . . . . Triggered . | . . . . Disarmed 12 | . 12 . . Reprogrammed . | . . . . Reused . | . . . . Traps Extracted . | . . . . Installed . | . . . . Triggered . | . . . . Objects Rigged 2 | . 2 . . Exploded 1 | . 1 . . Machines | -11 -10 -10 -7 ---------- Run | Yrd Mat Sub Scr Machines Disabled 13 | . 3 . 10 Max in Single Turn 3 | . 3 . . Machines Repaired . | . . . . Machines Dismantled . | . . . . Machines Sabotaged . | . . . . Overloaded Fab Kills . | . . . . Hacking | -11 -10 -10 -7 --------- Run | Yrd Mat Sub Scr Machines Accessed 9 | . 9 . . Terminals 7 | . 7 . . Fabricators . | . . . . Repair Stations . | . . . . Recycling Units 2 | . 2 . . Scanalyzers . | . . . . Garrison Access . | . . . . Total Hacks 52 | . 52 . . Successful 42 | . 42 . . Failed 10 | . 10 . . Catastrophic 2 | . 2 . . Database Lockouts . | . . . . Manual 46 | . 46 . . Terminals 39 | . 39 . . Fabricators . | . . . . Repair Stations . | . . . . Recycling Units 13 | . 13 . . Scanalyzers . | . . . . Garrison Access . | . . . . Terminal Hacks 9 | . 9 . . Robot Analysis 1 | . 1 . . Prototype ID Bank 1 | . 1 . . Emergency Access Points 2 | . 2 . . Terminal Index 1 | . 1 . . Alert Level 1 | . 1 . . Disarm Traps 2 | . 2 . . Dispatch Records 1 | . 1 . . Fabricator Hacks . | . . . . Repair Station Hacks . | . . . . Recycling Unit Hacks 4 | . 4 . . Retrieve Matter 2 | . 2 . . Retrieve Components 2 | . 2 . . Scanalyzer . | . . . . Garrison Access Hacks . | . . . . Unauthorized Hacks 29 | . 29 . . Terminals 21 | . 21 . . Track 6 | . 6 . . Assimilate 3 | . 3 . . Botnet 7 | . 7 . . Detonate 3 | . 3 . . Disrupt 2 | . 2 . . Fabricators . | . . . . Repair Stations . | . . . . Recycling Units 8 | . 8 . . Monitor 2 | . 2 . . Recyclers 2 | . 2 . . Mask 2 | . 2 . . Tunnel 2 | . 2 . . Scanalyzers . | . . . . Garrison Access . | . . . . Data Cores Recovered . | . . . . Used . | . . . . Hacking Detections 6 | . 6 . . Full Trace Events 3 | . 3 . . Feedback Events 1 | . 1 . . Corruption 1 | . 1 . . Feedback Blocked . | . . . . Robot Schematics Acquired . | . . . . Robots Built . | . . . . Authchips . | . . . . Time . | . . . . Total Robot Build Rating . | . . . . Part Schematics Acquired . | . . . . Parts Built . | . . . . Authchips . | . . . . Time . | . . . . Total Part Build Rating . | . . . . Part Studies Acquired . | . . . . Parts Repaired . | . . . . Time . | . . . . Parts Recycled . | . . . . Recycled Matter . | . . . . Retrieved Matter . | . . . . Retrieved Components 4 | . 4 . . Parts Scanalyzed . | . . . . Part Schematics Acquired . | . . . . Parts Damaged . | . . . . Bothacking | -11 -10 -10 -7 ------------ Run | Yrd Mat Sub Scr Used RIF Installer . | . . . . Robots Hacked . | . . . . Non-combat . | . . . . Combat . | . . . . Robot Hacks Applied . | . . . . Relay Couplers Released . | . . . . Fabnet Peak Effective % . | . . . . Robots Rewired . | . . . . Allies Hacked . | . . . . Hacks Repelled . | . . . . Allies | -11 -10 -10 -7 -------- Run | Yrd Mat Sub Scr Total Allies 1 | . . . 1 Largest Group 1 | . . . 1 Highest-Rated Group 464 | . . . 464 Highest-Rated Ally 464 | . . . 464 Total Orders . | . . . . Ally Attacks 106 | . . . 106 Total Damage 6686 | . . . 6686 Kills 43 | . . . 43 Allies Corrupted . | . . . . Allies Melted . | . . . . X0-1V1 Amusement Gains 101 | . 6 . 95 Average Entertainment 8 | . 6 4 23 Good Acts 1 | . . . 1 Bad Acts 3 | . . 2 1 Intel | -11 -10 -10 -7 ------- Run | Yrd Mat Sub Scr Active Infowar (turns) 4002 | 140 2013 699 1150 Seismic 4002 | 140 2013 699 1150 Robot Analysis Total 1 | . 1 . . Derelict Logs Recovered 1 | . . . 1 Drone Launches . | . . . . Drone Recoveries . | . . . . Exploration | -11 -10 -10 -7 ------------- Run | Yrd Mat Sub Scr Turns Passed 4034 | 172 2013 699 1150 Spaces Moved 2264 | 100 1095 403 666 Core 3 | 3 . . . Treads 2261 | 97 1095 403 666 Legs . | . . . . Wheels . | . . . . Hover . | . . . . Flight . | . . . . Fastest Speed 50 | 50 160 160 160 Average Speed 159 | 156 160 160 160 Slowest Speed 160 | 160 160 160 160 Overloaded Moves . | . . . . Propulsion Burnouts . | . . . . Robots Hopped . | . . . . Potential Cave-ins . | . . . . Cave-ins Triggered . | . . . . Exploration Rate (%) 47 | 7 99 31 54 Regions Visited 3 Branch Regions 2 Pre-discovered Areas 3 | . 2 . 1 Known Exits Taken 2 | 1 1 . . Unknown Exits Taken 1 | . . 1 . Scrap Searched 2 | . . . 2 Spaces Dug . | . . . . Terrain Destroyed 21 | . 21 . . Melee . | . . . . Projectile . | . . . . AOE 21 | . 21 . . Terrain Rammed . | . . . . Walls Destroyed . | . . . . Machines Disabled . | . . . . Actions | -11 -10 -10 -7 --------- Run | Yrd Mat Sub Scr Total 2562 | 110 1289 435 728 Wait 220 | . 151 21 48 Move 2261 | 99 1094 402 666 Hop . | . . . . Pick Up . | . . . . Fast Attach 19 | 11 4 3 1 Attach . | . . . . Detach . | . . . . Swap 4 | . 4 . . Drop 6 | . 6 . . Fire 40 | . 24 6 10 Melee . | . . . . Ram . | . . . . Kick . | . . . . Crush . | . . . . Escape Stasis . | . . . . Rewire . | . . . . Trap . | . . . . Miscellaneous 12 | . 6 3 3 Route ------- -11/Scrapyard -10/Materials (discovered 5 exits: *Mat x3 / *Min / *Sub) -10/Subcaves -7/Scraptown (discovered 1 exit: *Fac) History --------- Turn | Location | Event 2 | -11/Scrapyard | Met Revision 17 8 | -11/Scrapyard | Upgraded with Utility slot (x1) 11 | -11/Scrapyard | Upgraded with Utility slot (x1) 27 | -11/Scrapyard | Upgraded with Weapon slot (x2) 33 | -11/Scrapyard | Upgraded with Utility slot (x1) 34 | -11/Scrapyard | Identified exit to Materials 34 | -11/Scrapyard | Discovered exit to Materials (range 15) 61 | -11/Scrapyard | Upgraded with Power slot (x1) 77 | -11/Scrapyard | Upgraded with Propulsion slot (x1) 173 | -11/Scrapyard | Entered Materials 193 | -10/Materials | Identified exit to Mines 193 | -10/Materials | Discovered exit to Mines (range 16) 307 | -10/Materials | Build established: Hacker-Gunner 434 | -10/Materials | Upgraded with Weapon slot (x1) 540 | -10/Materials | Identified exit to Materials 540 | -10/Materials | Discovered exit to Materials (range 4) 1366 | -10/Materials | Discovered exit to Materials (range 8) 1429 | -10/Materials | Reached level 2 1434 | -10/Materials | Upgraded with Utility slot (x1) 1782 | -10/Materials | Discovered exit to Materials (range 10) 2151 | -10/Materials | Identified exit to Subcaves 2151 | -10/Materials | Discovered exit to Subcaves (range 8) 2181 | -10/Materials | Prayed at D.C.S.S. Altar Unit 2181 | -10/Materials | Reached level 3 2186 | -10/Materials | Entered Subcaves 2187 | -10/Subcaves | Approached by a straggling Scientist 2188 | -10/Subcaves | Reached level 4 2608 | -10/Subcaves | Upgraded with Propulsion slot (x1) 2615 | -10/Subcaves | Upgraded with Weapon slot (x1) 2885 | -10/Subcaves | Entered Scraptown 2885 | -7/Scraptown | System corruption cleaned by C-Scrubber 2887 | -7/Scraptown | Reached level 5 2887 | -7/Scraptown | Reached level 6 3140 | -7/Scraptown | Visited UFD Registry 3140 | -7/Scraptown | Registered with UFD as "Smoothtorch" 3165 | -7/Scraptown | Visited Fellowship of the Rings 3186 | -7/Scraptown | Visited Assassins FH 3276 | -7/Scraptown | Scanned Subdweller tech in exchange for log data 3300 | -7/Scraptown | Identified exit to Factory 3300 | -7/Scraptown | Discovered exit to Factory (range 13) 3335 | -7/Scraptown | Guru changed UFD alias to "Thunderthruster" 3671 | -7/Scraptown | Learned location of Extension (-5) 3711 | -7/Scraptown | Visited The Evicted 3725 | -7/Scraptown | Visited Spacefarers 3837 | -7/Scraptown | Visited Shadow of the Wyrm 3864 | -7/Scraptown | X0-1V1 brought Wyrm Statue to life 3864 | -7/Scraptown | Attacked by Scraptown defenders 3922 | -7/Scraptown | Reached level 7 3952 | -7/Scraptown | X0-1V1 activates XOMVISION 4024 | -7/Scraptown | Core integrity fell below 50% 4033 | -7/Scraptown | Core integrity fell below 20% 4035 | -7/Scraptown | Destroyed by 5B-FUL(j) with Overtuned Pulse Rifle Last Messages --------------- 04027_ The unstable cave ceiling collapses. 04027_ Penetrated by Siege Slug. 04027_ Weapon Shielding destroyed. 04027_ Siege Slug penetrates Wall. 04028_ The unstable cave ceiling collapses. 04028_ Barrage Gun crushed. 04028_ The unstable cave ceiling collapses. 04028_ Corrupted Ovr. Titanium Leg crushed. 04028_ The unstable cave ceiling collapses. 04029_ Penetrated by Siege Slug. 04029_ Siege Slug penetrates Earth. 04031_ Penetrated by Siege Slug. 04031_ Siege Slug penetrates Earth. 04033_ Penetrated by Siege Slug. 04034_ The unstable cave ceiling collapses. 04035_ Penetrated by Siege Slug. 04035_ Mining Laser destroyed. 04035_ Med. Laser blasted off. 04035_ X0-1V1 is interested. 04035_ X0-1V1 guffaws! Map ----- +----------------------------------------------------+ | | | | | | | ###### ########### ! ##########"" """"### | | #????# #?????????## ##????????#" $"#?? | | #????" "?????#????# #########?#" ""#?? | | #??? " " ????? ???# """"""""#?#" """#?? | | #""" ""#??" "??### ### " ""#?#" """#?? | | #""" "#? " " ?#"" """ "#?#"""""""#?? | | #""" "#?"""" """"?#" """ " ""#?#######???? | | #"" "#???## ##???#" "* """"""""#???????????? | | #? "#????? ?????#" != ##"""####???????????? | | #?"" ""#????? ?????#" "" %[[# ##########???###### | | #?## ##?????? ?????#" %%= # #???# | | #??? ???????? ?????#"""" !!=# ##??# | | #???#???????? ??????######*= % l "#??# | | ##??????????? ???????#?? !%# """"""""##?# | | ############??######;## # "#?# | | # "#?# | | "#?? | | ############??######## #???? | | ##?????????????#### # # # #?????? | | ########??????## ## %%= #; # ########## | | """""""#?? ;## # =!% | | " "#????#; !%%* j[ * | | ]=! "#?????# %/ [!@ %/%= !E[ ! | | " !!* "#???# ; %% %= %&% TT [ | | " !! "#?????# =% % % % % TT !!%= | | " ! "#?????# [% %* =%=# ##### | | " [ "#?????## %! ! # # # ?????# | | " ! "#??????# ###??????# | | " "#??????###" # #####????????# | | """" ""#????????####### # ############## | | #### ###??????????????# % """""##"" ## | | #### ###??????????????# !" " ## | | """" ""#??????????????# %/ ## " " ## | | " "#??????????????# =g# """ ## " ## | | " "" "#?????#?####???# "" ## " " ## | | " "" "#?????"""""""??< !%/=# " " # " " ## | | " "#??????" " "??< =%=[!# """ # "" ## | | ""#???????" "? #*=%!== """ # " " ## | | " """""#??????" # !%%%# # " "" ## | | """""""#??????? "" " # =[ " " # " " ## | | """"""????????? " # # """""### ## | | ######?????????"" # ################# | | ########?????"" "" # | | #"""X""#??????? " " "" ! | | #" "#???????""""""""# | | #" "#??????????###### | | #" "#?????????####### | +----------------------------------------------------+ Best States ------------- Heat Dissipation 35 Energy Generation 15 Energy Capacity 400 Matter Stores 300 Matter Capacity 300 Sight Range 16 Terrain Scan Density 10 Resistance: KI 35 Resistance: TH 35 Resistance: EX 35 Resistance: EM 35 Resistance: I 35 Resistance: S 35 Resistance: P 35 Utility Shielding 33 Weapon Shielding 33 Evasion (%) 40 Targeting Accuracy 5 Recoil Reduction 3 Offensive Hacking 20 Item Schematics ----------------- None Robot Schematics ------------------ None Fabricated ------------ Nothing Repaired ---------- Nothing Studied --------- None Alien Tech Used ----------------- None Achievements -------------- None Challenges ------------ None RPGLIKE | -11 -10 -10 -7 --------- Run | Yrd Mat Sub Scr Levels Raised 6 | . 2 1 3 XP Earned 15607 | 6000 4350 1000 4257 XP Spent 9400 | 4700 2500 2200 . Upgrades 11 | 7 2 2 . Power Slot 1 | 1 . . . Propulsion Slot 2 | 1 . 1 . Utility Slot 4 | 3 1 . . Weapon Slot 4 | 2 1 1 . Protomatter Created 146 | . 128 18 . Integrity Restored 230 | . 104 54 72 Core 224 | . 98 54 72 Parts 6 | . 6 . . Protomatter Decayed 261 | . 92 40 129 Game ------ Seed ShieldCentriumSteel Manual? 0 Play Time 00:40:38 Cumulative 605.7 hours Start 2026.09.22 @ 16:56:14 End 2026.09.23 @ 19:39:25 Sessions 5 Manual Loads 0 Difficulty Explorer Special Mode Winter2019/RPGLIKE Game No. 59 Rogue 5 Adventurer 5 Explorer 49 Win Type - Total 12 Types 11/0/0/1/0/0/0/0/0/0 Lore% 66 Gallery% 64 Achievement% 58 Wizard Run 0 Options --------- Layout 0 ASCII 0 Keyboard 0 Movement Mouse Keybinds 1 Fullscreen 1 Font 18/X11 Map View 38x25 Zoom Use 98% Tactical HUD 1 Map Filters NONE Filters NONE Steam 1 RUN: fae410b7-7da4-4701-bbe5-b9e506b874c5